[Event "2nd El Ksiba Open 2019"]
[Site "El Ksiba"]
[Date "2019.04.08"]
[Round "1.5"]
[White "MAAZOUZI MOHAMED"]
[Black "Strikovic, Aleksa"]
[Result "0-1"]
[ECO "A34"]
[WhiteElo "1945"]
[BlackElo "2493"]
[Annotator "ChessBase"]
[PlyCount "86"]
[EventDate "2018.08.17"]
[EventType "swiss"]
[EventCountry "MAR"]
[SourceTitle "playchess.com"]
[Source "ChessBase"]
[SourceQuality "1"]
[TimeControl "5400+30"]

1. e4 {[%emt 0:00:00]} c5 {[%emt 0:00:00]} 2. c4 {[%emt 0:00:00]} Nc6 {[%emt 0:00:00]} 3. Nf3 {[%emt 0:00:16]} Nf6 {[%emt 0:01:42]} 4. Nc3 {[%emt 0:00:59]} e6 {[%emt 0:00:06]} 5. Be2 {[%emt 0:04:17]} d5 {[%emt 1:30:42]} 6. cxd5 {[%emt 0:01:51]} exd5 {[%emt 0:00:00]} 7. exd5 {[%emt 0:00:14]} Nxd5 {[%emt 0:00:00]} 8. O-O {[%emt 0:01:12]} Nc7 {[%emt 0:00:00]} 9. d3 {[%emt 0:18:27]} Be7 {[%emt 0:00:00]} 10. Bf4 {[%emt 0:00:59]} Ne6 {[%emt 0:00:00]} 11. Bg3 {[%emt 0:00:44]} O-O {[%emt 0:00:00]} 12. Re1 {[%emt 0:00:53]} b6 {[%emt 0:00:00]} 13. Ne5 {[%emt 0:05:14]} Nxe5 {[%emt 0:00:00]} 14. Bxe5 {[%emt 0:00:12]} Bb7 {[%emt 0:00:00]} 15. Bf3 {[%emt 0:07:31]} Bxf3 {[%emt 0:00:00]} 16. Qxf3 {[%emt 0:00:14]} Bd6 {[%emt 0:00:00]} 17. Rad1 {[%emt 0:15:01]} Re8 {[%emt 0:00:00]} 18. Qg3 {[%emt 0:04:28]} Bxe5 {[%emt 0:00:00]} 19. Rxe5 {[%emt 0:00:28]} f6 {[%emt 0:00:00]} 20. Re3 {[%emt 0:11:48]} Nd4 {[%emt 0:00:00]} 21. Rde1 {[%emt 0:03:05]} Nf5 {[%emt 0:00:00]} 22. Rxe8+ {[%emt 0:05:50]} Qxe8 {[%emt 0:00:00]} 23. Rxe8+ {[%emt 0:00:10]} Rxe8 {[%emt 0:00:00]} 24. Kf1 {[%emt 0:00:04]} Nxg3+ {[%emt 0:00:00]} 25. hxg3 {[%emt 0:00:09]} f5 {[%emt 0:00:00]} 26. a4 {[%emt 0:00:48]} Kf7 {[%emt 0:00:00]} 27. Nb5 {[%emt 0:01:24]} Re7 {[%emt 0:00:00]} 28. Nc3 {[%emt 0:03:00]} Rd7 {[%emt 0:00:00]} 29. Ke2 {[%emt 0:00:18]} Rd4 {[%emt 0:00:00]} 30. Ke3 {[%emt 0:03:14]} Rb4 {[%emt 0:00:00]} 31. b3 {[%emt 0:00:18]} Rxb3 {[%emt 0:00:00]} 32. Nb5 {[%emt 0:00:13]} a6 {[%emt 0:00:00]} 33. Nd6+ {[%emt 0:00:20]} Ke6 {[%emt 0:00:00]} 34. Nc4 {[%emt 0:01:00]} b5 {[%emt 0:00:00]} 35. axb5 {[%emt 0:00:50]} axb5 {[%emt 0:00:00]} 36. Nd2 {[%emt 0:01:32]} Rb2 {[%emt 0:00:00]} 37. Nf3 {[%emt 0:00:15]} Kd5 {[%emt 0:00:00]} 38. Ng5 {[%emt 0:00:46]} b4 {[%emt 0:00:00]} 39. Nh3 {[%emt 0:00:15]} b3 {[%emt 0:00:00]} 40. Nf4+ {[%emt 0:00:15]} Kd6 {[%emt 0:00:00]} 41. Nh5 {[%emt 0:00:18]} g6 {[%emt 0:00:00]} 42. Nf6 {[%emt 0:00:23]} Rc2 {[%emt 0:00:00]} 43. Nxh7 {[%emt 0:00:23]} b2 {[%emt 0:00:00] Kd4 [%clk 0:00:00] Ke5+ [%clk 0:00:00]} 0-1

[Event "2nd El Ksiba Open 2019"]
[Site "El Ksiba"]
[Date "2019.04.08"]
[Round "1.6"]
[White "Maksimenko, Andrei"]
[Black "Tachfine, Anouar"]
[Result "1-0"]
[ECO "D36"]
[WhiteElo "2461"]
[BlackElo "1943"]
[Annotator "ChessBase"]
[PlyCount "53"]
[EventDate "2018.08.17"]
[EventType "swiss"]
[EventCountry "MAR"]
[SourceTitle "playchess.com"]
[Source "ChessBase"]
[SourceQuality "1"]
[TimeControl "5400+30"]

1. d4 {[%emt 0:00:00]} Nf6 {[%emt 0:00:00]} 2. c4 {[%emt 0:00:00]} e6 {[%emt 0:00:00]} 3. Nc3 {[%emt 0:00:00]} d5 {[%emt 0:00:00]} 4. cxd5 {[%emt 0:00:31]} exd5 {[%emt 0:00:10]} 5. Bg5 {[%emt 0:00:04]} Be7 {[%emt 0:00:51]} 6. e3 {[%emt 0:00:08]} Nbd7 {[%emt 0:01:46]} 7. Bd3 {[%emt 0:00:23]} c6 {[%emt 0:02:02]} 8. Qc2 {[%emt 0:00:32]} Nf8 {[%emt 0:01:26]} 9. Nge2 {[%emt 0:05:34]} Nh5 {[%emt 0:02:33]} 10. Bxe7 {[%emt 0:00:49]} Qxe7 {[%emt 0:00:08]} 11. h3 {[%emt 0:08:05]} Ng6 {[%emt 0:09:45]} 12. O-O-O {[%emt 0:04:22]} Bd7 {[%emt 0:06:31]} 13. Kb1 {[%emt 0:03:44]} Nf6 {[%emt 0:03:40]} 14. g4 {[%emt 0:10:11]} Nf8 {[%emt 0:20:34]} 15. Ng3 {[%emt 0:02:21]} g6 {[%emt 0:06:41]} 16. f3 {[%emt 0:17:15]} Qd6 {[%emt 0:02:31]} 17. Qf2 {[%emt 0:01:34]} O-O-O {[%emt 0:02:39]} 18. e4 {[%emt 0:00:42]} Qc7 {[%emt 0:02:20]} 19. e5 {[%emt 0:07:58]} Ng8 {[%emt 0:02:12]} 20. Rc1 {[%emt 0:03:22]} Qa5 {[%emt 0:04:25]} 21. f4 {[%emt 0:04:43]} Kb8 {[%emt 0:03:31]} 22. f5 {[%emt 0:01:04]} gxf5 {[%emt 0:02:09]} 23. gxf5 {[%emt 0:00:35]} Ne7 {[%emt 0:00:40]} 24. Nh5 {[%emt 0:01:01]} Bc8 {[%emt 0:02:06]} 25. Rhg1 {[%emt 0:01:34]} Nd7 {[%emt 0:00:50]} 26. Qh4 {[%emt 0:01:53]} Ng6 {[%emt 0:02:40]} 27. Qg3 {[%emt 0:01:06]} 1-0

[Event "2nd El Ksiba Open 2019"]
[Site "El Ksiba"]
[Date "2019.04.08"]
[Round "1.8"]
[White "Larino Nieto, David"]
[Black "Cherigui, Mourad"]
[Result "1-0"]
[ECO "A30"]
[WhiteElo "2434"]
[BlackElo "1935"]
[Annotator "ChessBase"]
[PlyCount "105"]
[EventDate "2018.08.17"]
[EventType "swiss"]
[EventCountry "MAR"]
[SourceTitle "playchess.com"]
[Source "ChessBase"]
[SourceQuality "1"]
[TimeControl "5400+30"]

1. Nf3 {[%emt 0:00:00]} Nf6 {[%emt 0:00:00]} 2. b3 {[%emt 0:00:00]} g6 {[%emt 0:00:16]} 3. Bb2 {[%emt 0:00:00]} Bg7 {[%emt 0:00:06]} 4. c4 {[%emt 0:00:00]} O-O {[%emt 0:00:05]} 5. g3 {[%emt 0:00:00]} b6 {[%emt 0:00:29]} 6. Bg2 {[%emt 0:00:00]} Bb7 {[%emt 0:00:03]} 7. O-O {[%emt 0:00:09]} c5 {[%emt 0:01:25]} 8. Nc3 {[%emt 0:00:46]} Nc6 {[%emt 0:01:30]} 9. Ne5 {[%emt 0:01:49]} Qb8 {[%emt 0:02:55]} 10. Nd5 {[%emt 0:08:46]} Nxd5 {[%emt 0:29:44]} 11. Nxd7 {[%emt 0:00:12]} Qd6 {[%emt 0:00:01]} 12. Bxg7 {[%emt 0:00:08]} Kxg7 {[%emt 0:00:01]} 13. cxd5 {[%emt 0:00:14]} Qxd7 {[%emt 0:00:01]} 14. dxc6 {[%emt 0:00:09]} Bxc6 {[%emt 0:00:07]} 15. Bxc6 {[%emt 0:00:03]} Qxc6 {[%emt 0:00:05]} 16. Qc2 {[%emt 0:00:04]} Qd5 {[%emt 0:06:38]} 17. d3 {[%emt 0:00:25]} Rad8 {[%emt 0:03:21]} 18. Qc4 {[%emt 0:00:16]} f5 {[%emt 0:00:30]} 19. Qxd5 {[%emt 0:03:12]} Rxd5 {[%emt 0:07:13]} 20. Rfc1 {[%emt 0:00:02]} Rfd8 {[%emt 0:00:27]} 21. a3 {[%emt 0:00:34]} a5 {[%emt 0:10:15]} 22. Rab1 {[%emt 0:02:42]} Ra8 {[%emt 0:04:58]} 23. Kf1 {[%emt 0:01:41]} Kf7 {[%emt 0:00:57]} 24. Ke1 {[%emt 0:00:08]} Ke6 {[%emt 0:02:55]} 25. Rc4 {[%emt 0:00:20]} b5 {[%emt 0:04:23]} 26. Rh4 {[%emt 0:00:17]} h5 {[%emt 0:00:28]} 27. a4 {[%emt 0:00:05]} Rb8 {[%emt 0:09:11]} 28. axb5 {[%emt 0:00:48]} Rxb5 {[%emt 0:00:02]} 29. Rc4 {[%emt 0:00:21]} Rd4 {[%emt 0:00:46]} 30. Ra1 {[%emt 0:00:07]} Kd6 {[%emt 0:04:27]} 31. Ra3 {[%emt 0:00:31]} Kc6 {[%emt 0:00:46]} 32. Kd2 {[%emt 0:01:11]} Kb6 {[%emt 0:02:56]} 33. Kc3 {[%emt 0:00:24]} e5 {[%emt 0:00:41]} 34. f4 {[%emt 0:03:31]} Rd6 {[%emt 0:06:14]} 35. Ra1 {[%emt 0:00:51]} Re6 {[%emt 0:02:04]} 36. e4 {[%emt 0:00:03]} Kc6 {[%emt 0:01:09]} 37. exf5 {[%emt 0:01:16]} gxf5 {[%emt 0:00:14]} 38. fxe5 {[%emt 0:01:20]} Kd5 {[%emt 0:00:42]} 39. Rca4 {[%emt 0:08:35]} Reb6 {[%emt 0:00:03]} 40. R1a3 {[%emt 0:00:04]} Ra6 {[%emt 0:00:10]} 41. e6 {[%emt 0:00:17]} Rxe6 {[%emt 0:00:39]} 42. Rxa5 {[%emt 0:00:05]} Rbb6 {[%emt 0:01:30]} 43. R3a4 {[%emt 0:00:29]} Re1 {[%emt 0:00:30]} 44. Rf4 {[%emt 0:00:47]} Rc1+ {[%emt 0:00:31]} 45. Kb2 {[%emt 0:00:37]} Re1 {[%emt 0:00:28]} 46. Rxf5+ {[%emt 0:00:33]} Kd4 {[%emt 0:00:29]} 47. Raxc5 {[%emt 0:00:21]} Re2+ {[%emt 0:00:32]} 48. Rc2 {[%emt 0:00:03]} Rxc2+ {[%emt 0:00:30]} 49. Kxc2 {[%emt 0:00:02]} Ra6 {[%emt 0:00:14]} 50. Rf4+ {[%emt 0:00:06]} Ke3 {[%emt 0:00:16]} 51. Kc3 {[%emt 0:00:31]} Ra2 {[%emt 0:00:35]} 52. Re4+ {[%emt 0:00:02]} Kf3 {[%emt 0:00:03]} 53. Rh4 {[%emt 0:00:08]} 1-0

[Event "2nd El Ksiba Open 2019"]
[Site "El Ksiba"]
[Date "2019.04.08"]
[Round "1.10"]
[White "Naumkin, Igor"]
[Black "ELHIJAZI AMINE"]
[Result "1-0"]
[ECO "E97"]
[WhiteElo "2383"]
[BlackElo "1920"]
[Annotator "ChessBase"]
[PlyCount "55"]
[EventDate "2018.08.17"]
[EventType "swiss"]
[EventCountry "MAR"]
[SourceTitle "playchess.com"]
[Source "ChessBase"]
[SourceQuality "1"]
[TimeControl "5400+30"]

1. d4 {[%emt 0:00:00]} Nf6 {[%emt 0:00:00]} 2. c4 {[%emt 0:00:00]} g6 {[%emt 0:00:00]} 3. Nc3 {[%emt 0:00:06]} Bg7 {[%emt 0:00:00]} 4. e4 {[%emt 0:00:07]} d6 {[%emt 0:00:00]} 5. Nf3 {[%emt 0:00:06]} O-O {[%emt 0:00:04]} 6. Be2 {[%emt 0:00:04]} Nc6 {[%emt 0:02:39]} 7. O-O {[%emt 0:00:35]} e5 {[%emt 0:00:03]} 8. d5 {[%emt 0:00:09]} Ne7 {[%emt 0:00:46]} 9. b4 {[%emt 0:00:09]} a5 {[%emt 0:01:46]} 10. bxa5 {[%emt 0:00:18]} Nd7 {[%emt 0:02:34]} 11. Nd2 {[%emt 0:03:17]} Rxa5 {[%emt 0:04:05]} 12. a4 {[%emt 0:01:52]} f5 {[%emt 0:12:12]} 13. Ba3 {[%emt 0:02:00]} Nf6 {[%emt 0:01:23]} 14. Bb4 {[%emt 0:01:12]} Ra8 {[%emt 0:00:31]} 15. c5 {[%emt 0:01:50]} Ne8 {[%emt 0:22:43]} 16. Nc4 {[%emt 0:04:37]} Rf6 {[%emt 0:02:26]} 17. Qb3 {[%emt 0:03:17]} fxe4 {[%emt 0:16:49]} 18. Nxe4 {[%emt 0:03:30]} Rf4 {[%emt 0:00:07]} 19. cxd6 {[%emt 0:02:35]} Nxd5 {[%emt 0:08:43]} 20. Ne3 {[%emt 0:05:36]} Be6 {[%emt 0:02:07]} 21. Bc4 {[%emt 0:07:17]} c6 {[%emt 0:03:27]} 22. Nxd5 {[%emt 0:01:24]} cxd5 {[%emt 0:05:09]} 23. Bxd5 {[%emt 0:00:17]} Bxd5 {[%emt 0:00:17]} 24. Qxd5+ {[%emt 0:00:10]} Kh8 {[%emt 0:00:01]} 25. Bc5 {[%emt 0:11:13]} Ra5 {[%emt 0:02:28]} 26. Qxb7 {[%emt 0:03:17]} Rxe4 {[%emt 0:02:03]} 27. d7 {[%emt 0:02:58]} Raxa4 {[%emt 0:07:46]} 28. Qc8 {[%emt 0:03:52]} 1-0

[Event "2nd El Ksiba Open 2019"]
[Site "El Ksiba"]
[Date "2019.04.09"]
[Round "2.1"]
[White "Bauer, Christian"]
[Black "Benaddi, Mouhcine"]
[Result "1-0"]
[ECO "D00"]
[WhiteElo "2639"]
[BlackElo "2111"]
[Annotator "ChessBase"]
[PlyCount "59"]
[EventDate "2018.08.17"]
[EventType "swiss"]
[EventCountry "MAR"]
[SourceTitle "playchess.com"]
[Source "ChessBase"]
[SourceQuality "1"]
[TimeControl "5400+30"]

1. d4 {[%emt 0:00:00]} c6 {[%emt 0:01:01]} 2. Bf4 {[%emt 0:02:39]} d5 {[%emt 0:04:56]} 3. e3 {[%emt 0:00:18]} Bf5 {[%emt 0:03:50]} 4. c4 {[%emt 0:00:51]} e6 {[%emt 0:01:07]} 5. Qb3 {[%emt 0:01:02]} Qb6 {[%emt 0:02:00]} 6. c5 {[%emt 0:01:18]} Qa5+ {[%emt 0:03:56]} 7. Nc3 {[%emt 0:00:36]} b5 {[%emt 0:01:07]} 8. Nf3 {[%emt 0:06:20]} Nd7 {[%emt 0:01:01]} 9. Be2 {[%emt 0:03:24]} Ngf6 {[%emt 0:00:59]} 10. a4 {[%emt 0:04:20]} Nh5 {[%emt 0:06:46]} 11. Nh4 {[%emt 0:13:35]} Nxf4 {[%emt 0:04:36]} 12. exf4 {[%emt 0:00:04]} b4 {[%emt 0:07:23]} 13. Nxd5 {[%emt 0:00:53]} cxd5 {[%emt 0:02:55]} 14. Nxf5 {[%emt 0:01:41]} exf5 {[%emt 0:04:48]} 15. Qxd5 {[%emt 0:00:26]} b3+ {[%emt 0:01:34]} 16. Kf1 {[%emt 0:01:56]} Rb8 {[%emt 0:07:49]} 17. Bc4 {[%emt 0:17:58]} Be7 {[%emt 0:05:06]} 18. Qxf7+ {[%emt 0:00:22]} Kd8 {[%emt 0:00:01]} 19. Re1 {[%emt 0:06:51]} Bf6 {[%emt 0:02:34]} 20. c6 {[%emt 0:00:47]} Qc7 {[%emt 0:04:22]} 21. Qd5 {[%emt 0:00:16]} Rb4 {[%emt 0:01:18]} 22. g3 {[%emt 0:16:28]} Re8 {[%emt 0:07:51]} 23. Rxe8+ {[%emt 0:02:47]} Kxe8 {[%emt 0:00:02]} 24. cxd7+ {[%emt 0:00:52]} Kd8 {[%emt 0:00:55]} 25. Bb5 {[%emt 0:02:48]} Rxd4 {[%emt 0:01:04]} 26. Qa8+ {[%emt 0:00:33]} Ke7 {[%emt 0:00:10]} 27. Kg2 {[%emt 0:00:36]} Rd2 {[%emt 0:04:20]} 28. Re1+ {[%emt 0:00:57]} Kd6 {[%emt 0:00:06]} 29. Qf8+ {[%emt 0:01:15]} Kd5 {[%emt 0:00:08]} 30. Re5+ {[%emt 0:13:07]} 1-0

[Event "2nd El Ksiba Open 2019"]
[Site "El Ksiba"]
[Date "2019.04.09"]
[Round "2.2"]
[White "Lamrabet, Mohamed"]
[Black "Hamdouchi, Hicham"]
[Result "0-1"]
[ECO "B33"]
[WhiteElo "2107"]
[BlackElo "2584"]
[Annotator "ChessBase"]
[PlyCount "89"]
[EventDate "2018.08.17"]
[EventType "swiss"]
[EventCountry "MAR"]
[SourceTitle "playchess.com"]
[Source "ChessBase"]
[SourceQuality "1"]
[TimeControl "5400+30"]

1. e4 {[%emt 0:00:14]} c5 {[%emt 0:00:00]} 2. Nf3 {[%emt 0:00:19]} Nc6 {[%emt 0:00:00]} 3. d4 {[%emt 0:00:40]} cxd4 {[%emt 0:00:00]} 4. Nxd4 {[%emt 0:00:07]} Qb6 {[%emt 0:00:00]} 5. Nb3 {[%emt 0:00:56]} Nf6 {[%emt 0:00:05]} 6. Nc3 {[%emt 0:00:29]} e6 {[%emt 0:00:08]} 7. Be3 {[%emt 0:02:57]} Qc7 {[%emt 0:00:23]} 8. Bd3 {[%emt 0:03:30]} a6 {[%emt 0:01:52]} 9. O-O {[%emt 0:03:27]} b5 {[%emt 0:00:47]} 10. f4 {[%emt 0:02:42]} d6 {[%emt 0:00:40]} 11. Qf3 {[%emt 0:02:28]} Bb7 {[%emt 0:00:23]} 12. Rad1 {[%emt 0:03:07]} Be7 {[%emt 0:06:24]} 13. Kh1 {[%emt 0:01:59]} O-O {[%emt 0:09:22]} 14. Qh3 {[%emt 0:03:54]} Nb4 {[%emt 0:10:14]} 15. Rf3 {[%emt 0:24:01]} Rfe8 {[%emt 0:12:27]} 16. Rdf1 {[%emt 0:08:42]} Nd7 {[%emt 0:10:03]} 17. Bd4 {[%emt 0:10:16]} Bf8 {[%emt 0:07:42]} 18. Qh5 {[%emt 0:08:40]} g6 {[%emt 0:05:47]} 19. Qh4 {[%emt 0:05:55]} Qd8 {[%emt 0:02:17]} 20. Qf2 {[%emt 0:02:00]} Nxd3 {[%emt 0:02:54]} 21. cxd3 {[%emt 0:01:14]} f5 {[%emt 0:00:27]} 22. exf5 {[%emt 0:09:06]} exf5 {[%emt 0:03:21]} 23. Re3 {[%emt 0:01:18]} Rxe3 {[%emt 0:02:37]} 24. Qxe3 {[%emt 0:00:23]} Qe8 {[%emt 0:00:30]} 25. Qg3 {[%emt 0:01:15]} Rc8 {[%emt 0:03:53]} 26. h3 {[%emt 0:01:24]} Qf7 {[%emt 0:02:59]} 27. Re1 {[%emt 0:01:04]} Nf6 {[%emt 0:02:19]} 28. Qh4 {[%emt 0:00:42]} Nh5 {[%emt 0:05:48]} 29. Re2 {[%emt 0:00:50]} Re8 {[%emt 0:02:23]} 30. Rxe8 {[%emt 0:00:44]} Qxe8 {[%emt 0:00:08]} 31. Qf2 {[%emt 0:00:15]} b4 {[%emt 0:05:19]} 32. Nd1 {[%emt 0:00:43]} Qb5 {[%emt 0:01:00]} 33. Qe3 {[%emt 0:00:31]} Qd5 {[%emt 0:00:18]} 34. Qf2 {[%emt 0:00:36]} Nxf4 {[%emt 0:02:01]} 35. Ne3 {[%emt 0:00:18]} Nxd3 {[%emt 0:00:06]} 36. Qd2 {[%emt 0:00:40]} Qe4 {[%emt 0:00:13]} 37. Qc2 {[%emt 0:00:32]} Ne5 {[%emt 0:01:34]} 38. Bb6 {[%emt 0:00:29]} f4 {[%emt 0:01:56]} 39. Nd2 {[%emt 0:00:32]} Qxc2 {[%emt 0:00:36]} 40. Nxc2 {[%emt 0:00:07]} Nd3 {[%emt 0:00:05]} 41. Bd4 {[%emt 0:00:51]} Bd5 {[%emt 0:00:49]} 42. a3 {[%emt 0:00:31]} b3 {[%emt 0:00:29]} 43. Na1 {[%emt 0:00:28]} Nc1 {[%emt 0:00:17]} 44. Kh2 {[%emt 0:00:32]} Kf7 {[%emt 0:00:20]} 45. Nb1 {[%emt 0:01:02]} 0-1

[Event "2nd El Ksiba Open 2019"]
[Site "El Ksiba"]
[Date "2019.04.09"]
[Round "2.4"]
[White "Messala, Noureddine"]
[Black "Grover, Sahaj"]
[Result "0-1"]
[ECO "D94"]
[WhiteElo "2090"]
[BlackElo "2511"]
[Annotator "ChessBase"]
[PlyCount "100"]
[EventDate "2018.08.17"]
[EventType "swiss"]
[EventCountry "MAR"]
[SourceTitle "playchess.com"]
[Source "ChessBase"]
[SourceQuality "1"]
[TimeControl "5400+30"]

1. d4 {[%emt 0:10:13]} Nf6 {[%emt 0:00:00]} 2. Nf3 {[%emt 0:01:14]} g6 {[%emt 0:01:56]} 3. c4 {[%emt 0:01:33]} Bg7 {[%emt 0:00:06]} 4. Nc3 {[%emt 0:01:52]} d5 {[%emt 0:00:15]} 5. e3 {[%emt 0:03:07]} O-O {[%emt 0:00:23]} 6. Be2 {[%emt 0:03:41]} c5 {[%emt 0:00:32]} 7. O-O {[%emt 0:08:44]} cxd4 {[%emt 0:01:06]} 8. exd4 {[%emt 0:03:13]} Nc6 {[%emt 0:00:16]} 9. Ne5 {[%emt 0:09:22]} Bf5 {[%emt 0:04:56]} 10. Be3 {[%emt 0:07:51]} dxc4 {[%emt 0:10:29]} 11. Nxc6 {[%emt 0:03:50]} bxc6 {[%emt 0:00:05]} 12. Bxc4 {[%emt 0:00:50]} Qd6 {[%emt 0:00:19]} 13. f3 {[%emt 0:06:01]} Rfd8 {[%emt 0:03:51]} 14. Rc1 {[%emt 0:14:35]} Rab8 {[%emt 0:02:05]} 15. b3 {[%emt 0:02:15]} Qb4 {[%emt 0:07:49]} 16. Qe1 {[%emt 0:07:19]} Ne8 {[%emt 0:00:19]} 17. Qh4 {[%emt 0:03:31]} Bf6 {[%emt 0:00:58]} 18. Qf4 {[%emt 0:00:08]} Qd6 {[%emt 0:20:04]} 19. Ne4 {[%emt 0:08:17]} Bxe4 {[%emt 0:01:17]} 20. fxe4 {[%emt 0:01:13]} Qxf4 {[%emt 0:00:08]} 21. Rxf4 {[%emt 0:00:38]} e6 {[%emt 0:00:09]} 22. Be2 {[%emt 0:01:01]} Bxd4 {[%emt 0:00:32]} 23. Bxd4 {[%emt 0:00:28]} Rxd4 {[%emt 0:00:06]} 24. Rxc6 {[%emt 0:00:15]} Rd2 {[%emt 0:00:06]} 25. Bc4 {[%emt 0:00:45]} Rxa2 {[%emt 0:00:08]} 26. Rf3 {[%emt 0:00:29]} Rd8 {[%emt 0:00:14]} 27. Rd3 {[%emt 0:00:32]} Rxd3 {[%emt 0:00:14]} 28. Bxd3 {[%emt 0:00:01]} Nf6 {[%emt 0:00:08]} 29. Rc2 {[%emt 0:00:59]} Rxc2 {[%emt 0:00:57]} 30. Bxc2 {[%emt 0:00:01]} Kf8 {[%emt 0:00:07]} 31. h3 {[%emt 0:00:57]} Ke7 {[%emt 0:00:13]} 32. Kf2 {[%emt 0:00:14]} Kd6 {[%emt 0:00:04]} 33. Ke3 {[%emt 0:00:20]} Kc5 {[%emt 0:00:54]} 34. g4 {[%emt 0:00:56]} g5 {[%emt 0:00:31]} 35. Kd3 {[%emt 0:00:34]} Nd7 {[%emt 0:00:40]} 36. Kc3 {[%emt 0:00:13]} a5 {[%emt 0:00:05]} 37. Bd1 {[%emt 0:00:34]} Ne5 {[%emt 0:00:08]} 38. Be2 {[%emt 0:00:21]} Ng6 {[%emt 0:00:19]} 39. Bf1 {[%emt 0:00:51]} Nf4 {[%emt 0:00:24]} 40. Kb2 {[%emt 0:00:29]} Kb4 {[%emt 0:01:01]} 41. Kc2 {[%emt 0:00:27]} h5 {[%emt 0:00:16]} 42. Kb2 {[%emt 0:00:35]} h4 {[%emt 0:00:06]} 43. Kc2 {[%emt 0:00:25]} Kc5 {[%emt 0:00:35]} 44. Kc3 {[%emt 0:00:12]} f6 {[%emt 0:00:05]} 45. Kb2 {[%emt 0:00:52]} Kd4 {[%emt 0:00:08]} 46. Ka3 {[%emt 0:00:11]} Nd3 {[%emt 0:00:07]} 47. Bxd3 {[%emt 0:00:46]} Kxd3 {[%emt 0:00:04]} 48. Ka4 {[%emt 0:00:06]} Kxe4 {[%emt 0:00:49]} 49. Kxa5 {[%emt 0:00:06]} f5 {[%emt 0:00:03]} 50. b4 {[%emt 0:00:56]} fxg4 {[%emt 0:00:12]} 0-1

[Event "2nd El Ksiba Open 2019"]
[Site "El Ksiba"]
[Date "2019.04.09"]
[Round "2.7"]
[White "Oussedik, Mahfoud"]
[Black "Chennaoui, Yasin"]
[Result "0-1"]
[ECO "B45"]
[WhiteElo "2440"]
[BlackElo "2064"]
[Annotator "NA"]
[PlyCount "94"]
[EventDate "2018.08.17"]
[EventType "swiss"]
[EventCountry "MAR"]
[SourceTitle "playchess.com"]
[Source "ChessBase"]
[SourceQuality "1"]
[TimeControl "5400+30"]

1. e4 {[%emt 0:00:00]} c5 {[%emt 0:00:00]} 2. Nf3 {[%emt 0:00:00]} e6 {[%emt 0:00:00]} 3. d4 {[%emt 0:00:00]} cxd4 {[%emt 0:00:00]} 4. Nxd4 {[%emt 0:00:00]} Nf6 {[%emt 0:00:00]} 5. Nc3 {[%emt 0:00:12]} Bb4 {[%emt 0:00:00]} 6. Bd3 {[%emt 0:00:46]} Nc6 {[%emt 0:00:00]} 7. Be3 {[%emt 0:02:10]} d5 {[%emt 0:00:09]} 8. exd5 {[%emt 0:01:58]} Nxd5 {[%emt 0:04:59]} 9. Nxc6 {[%emt 0:00:30]} bxc6 {[%emt 0:01:19]} 10. Bd2 {[%emt 0:04:50]} Nxc3 {[%emt 0:05:39]} 11. bxc3 {[%emt 0:00:39]} Bd6 {[%emt 0:00:04]} 12. Qg4 {[%emt 0:03:49]} Qf6 {[%emt 0:07:14]} 13. O-O {[%emt 0:08:00]} Qe5 {[%emt 0:04:47]} 14. g3 {[%emt 0:00:18]} h5 {[%emt 0:04:06]} 15. Qf3 {[%emt 0:04:32]} Bd7 {[%emt 0:03:57]} 16. Be4 {[%emt 0:04:24]} Qc5 {[%emt 0:00:15]} 17. Be3 {[%emt 0:00:49]} Qa3 {[%emt 0:15:14]} 18. Rad1 {[%emt 0:04:38]} Ke7 {[%emt 0:06:21]} 19. Rxd6 {[%emt 0:08:48]} Qxd6 {[%emt 0:03:27]} 20. Rd1 {[%emt 0:00:14]} Qc7 {[%emt 0:06:53]} 21. Bc5+ {[%emt 0:00:47]} Ke8 {[%emt 0:01:20]} 22. Rxd7 {[%emt 0:00:11]} Kxd7 {[%emt 0:00:38]} 23. Qxf7+ {[%emt 0:03:01]} Kd8 {[%emt 0:06:51]} 24. Qxe6 {[%emt 0:07:56]} Re8 {[%emt 0:01:18]} 25. Qc4 {[%emt 0:05:39]} Rb8 {[%emt 0:00:10]} 26. Qd4+ {[%emt 0:02:24]} Qd7 {[%emt 0:02:02]} 27. Bxc6 {[%emt 0:02:03]} Qxd4 {[%emt 0:00:05]} 28. cxd4 {[%emt 0:00:31]} Re1+ {[%emt 0:00:05]} 29. Kg2 {[%emt 0:00:14]} a5 {[%emt 0:03:18]} 30. c4 {[%emt 0:01:19]} Rb2 {[%emt 0:01:54]} 31. a4 {[%emt 0:00:22]} Kc7 {[%emt 0:04:28]} 32. d5 {[%emt 0:00:58]} Re4 {[%emt 0:00:28]} 33. Bb5 {[%emt 0:00:50]} Rxb5 {[%emt 0:00:09]} 34. cxb5 {[%emt 0:05:21]} Rxa4 {[%emt 0:00:14]} 35. Bf8 {[%emt 0:10:34]} g6 {[%emt 0:01:14]} 36. Kf3 {[%emt 0:07:44]} Rd4 {[%emt 0:01:05]} 37. d6+ {[%emt 0:00:26]} Kd7 {[%emt 0:00:03]} 38. h3 {[%emt 0:05:28]} a4 {[%emt 0:00:12]} 39. Ke3 {[%emt 0:01:58]} Rd5 {[%emt 0:00:04]} 40. g4 {[%emt 0:00:25]} hxg4 {[%emt 0:00:06]} 41. hxg4 {[%emt 0:00:08]} a3 {[%emt 0:00:04]} 42. Bg7 {[%emt 0:00:24]} a2 {[%emt 0:00:08]} 43. f4 {[%emt 0:00:14]} Rxb5 {[%emt 0:00:22]} 44. Ke4 {[%emt 0:00:24]} Rb4+ {[%emt 0:00:33]} 45. Ke3 {[%emt 0:00:08]} Rb1 {[%emt 0:00:09]} 46. f5 {[%emt 0:00:25]} gxf5 {[%emt 0:00:04]} 47. gxf5 {[%emt 0:00:14]} Kxd6 {[%emt 0:00:12]} 0-1